[Event "Grandmaster Triathlon (GM1)"]
[Site "Biel, CH"]
[Date "2025.07.20"]
[Round "12"]
[White "Wojtaszek, Radoslaw"]
[Black "Salem, A.R. Saleh"]
[Result "0-1"]
[Board "3"]
[TimeControl "180+2"]
[WhiteFideId "1118358"]
[BlackFideId "9301348"]
[WhiteTitle "GM"]
[BlackTitle "GM"]
[WhiteElo "2610"]
[BlackElo "2644"]
[WhiteTeam "POL"]
[BlackTeam "UAE"]
[WhiteClock "0:00:13"]
[BlackClock "0:00:08"]
[Variant "Standard"]

1. Nf3 {[%clk 0:03:03]}  c5 {[%clk 0:03:03]} 2. g3 {[%clk 0:03:03]}  g6 {[%clk 0:03:03]} 3. c3 {[%clk 0:03:04]}  Bg7 {[%clk 0:02:59]} 4. d4 {[%clk 0:03:04]}  cxd4 {[%clk 0:02:57]} 5. cxd4 {[%clk 0:03:05]}  d5 {[%clk 0:02:57]} 6. Nc3 {[%clk 0:03:05]}  Nf6 {[%clk 0:02:55]} 7. Ne5 {[%clk 0:03:04]}  O-O {[%clk 0:02:54]} 8. Bg2 {[%clk 0:03:05]}  Nc6 {[%clk 0:02:54]} 9. O-O {[%clk 0:03:02]}  Bf5 {[%clk 0:02:54]} 10. Bf4 {[%clk 0:02:58]}  Rc8 {[%clk 0:02:49]} 11. Rc1 {[%clk 0:02:59]}  Qb6 {[%clk 0:02:50]} 12. Qd2 {[%clk 0:02:35]}  Rfd8 {[%clk 0:02:01]} 13. Rfd1 {[%clk 0:02:28]}  Qa6 {[%clk 0:01:33]} 14. h3 {[%clk 0:02:20]}  h5 {[%clk 0:01:34]} 15. Bg5 {[%clk 0:02:07]}  Be6 {[%clk 0:01:08]} 16. Qe3 {[%clk 0:01:56]}  Kh7 {[%clk 0:00:34]} 17. Nd3 {[%clk 0:01:42]}  Bf5 {[%clk 0:00:18]} 18. Nc5 {[%clk 0:01:21]}  Qb6 {[%clk 0:00:17]} 19. Bxf6 {[%clk 0:01:21]}  exf6 {[%clk 0:00:06]} 20. b3 {[%clk 0:01:12]}  Bh6 {[%clk 0:00:05]} 21. f4 {[%clk 0:01:11]}  Nxd4 {[%clk 0:00:06]} 22. N5a4 {[%clk 0:01:11]}  Nxe2+ {[%clk 0:00:06]} 23. Kf2 {[%clk 0:01:07]}  Qxe3+ {[%clk 0:00:07]} 24. Kxe3 {[%clk 0:01:08]}  Nxc1 {[%clk 0:00:08]} 25. Kd4 {[%clk 0:00:13]} 0-1

[Event "Grandmaster Triathlon (GM1)"]
[Site "Biel, CH"]
[Date "2025.07.20"]
[Round "13"]
[White "Aravindh, Chithambaram VR."]
[Black "Murzin, Volodar"]
[Result "1/2-1/2"]
[Board "1"]
[TimeControl "180+2"]
[WhiteFideId "5072786"]
[BlackFideId "44155573"]
[WhiteTitle "GM"]
[BlackTitle "GM"]
[WhiteElo "2611"]
[BlackElo "2669"]
[WhiteTeam "IND"]
[BlackTeam "FID"]
[WhiteClock "0:00:06"]
[BlackClock "0:00:08"]
[Variant "Standard"]

1. d4 {[%clk 0:03:03]}  d5 {[%clk 0:03:03]} 2. c4 {[%clk 0:03:04]}  c6 {[%clk 0:03:04]} 3. Nf3 {[%clk 0:03:02]}  Nf6 {[%clk 0:03:05]} 4. Nc3 {[%clk 0:03:03]}  dxc4 {[%clk 0:03:06]} 5. a4 {[%clk 0:03:03]}  Bf5 {[%clk 0:03:06]} 6. Ne5 {[%clk 0:03:03]}  Nbd7 {[%clk 0:03:07]} 7. Nxc4 {[%clk 0:03:03]}  Nb6 {[%clk 0:03:08]} 8. Ne5 {[%clk 0:03:04]}  a5 {[%clk 0:03:09]} 9. e3 {[%clk 0:03:03]}  e6 {[%clk 0:03:08]} 10. g4 {[%clk 0:03:01]}  Bg6 {[%clk 0:02:40]} 11. h4 {[%clk 0:03:02]}  Bd6 {[%clk 0:02:30]} 12. h5 {[%clk 0:02:53]}  Be4 {[%clk 0:02:23]} 13. f3 {[%clk 0:02:53]}  Bxe5 {[%clk 0:02:23]} 14. dxe5 {[%clk 0:02:54]}  Qxd1+ {[%clk 0:02:23]} 15. Nxd1 {[%clk 0:02:54]}  Bxf3 {[%clk 0:02:17]} 16. exf6 {[%clk 0:02:52]}  Bxh1 {[%clk 0:02:12]} 17. fxg7 {[%clk 0:02:53]}  Rg8 {[%clk 0:02:13]} 18. h6 {[%clk 0:02:54]}  Be4 {[%clk 0:01:56]} 19. Nc3 {[%clk 0:02:54]}  Bg6 {[%clk 0:01:57]} 20. e4 {[%clk 0:02:55]}  f6 {[%clk 0:01:55]} 21. g5 {[%clk 0:02:10]}  f5 {[%clk 0:01:48]} 22. Be3 {[%clk 0:01:28]}  Nd7 {[%clk 0:01:48]} 23. Rd1 {[%clk 0:01:08]}  Ke7 {[%clk 0:01:43]} 24. exf5 {[%clk 0:00:40]}  Bxf5 {[%clk 0:01:44]} 25. Bg2 {[%clk 0:00:41]}  Ne5 {[%clk 0:01:13]} 26. Ne4 {[%clk 0:00:41]}  Ng4 {[%clk 0:01:11]} 27. Bd4 {[%clk 0:00:15]}  Kf7 {[%clk 0:01:03]} 28. Nf6 {[%clk 0:00:11]}  Rgd8 {[%clk 0:00:51]} 29. Bf3 {[%clk 0:00:06]}  Nxf6 {[%clk 0:00:49]} 30. Bxf6 {[%clk 0:00:06]}  Rxd1+ {[%clk 0:00:49]} 31. Kxd1 {[%clk 0:00:07]}  Rc8 {[%clk 0:00:40]} 32. Kd2 {[%clk 0:00:07]}  b5 {[%clk 0:00:39]} 33. b3 {[%clk 0:00:06]}  b4 {[%clk 0:00:32]} 34. Bh5+ {[%clk 0:00:07]}  Bg6 {[%clk 0:00:29]} 35. Be2 {[%clk 0:00:07]}  Be4 {[%clk 0:00:30]} 36. Bh5+ {[%clk 0:00:05]}  Bg6 {[%clk 0:00:27]} 37. Be2 {[%clk 0:00:04]}  Rc7 {[%clk 0:00:23]} 38. Bc4 {[%clk 0:00:05]}  Rd7+ {[%clk 0:00:23]} 39. Ke3 {[%clk 0:00:05]}  Rd5 {[%clk 0:00:10]} 40. Kf4 {[%clk 0:00:03]}  Kg8 {[%clk 0:00:04]} 41. Ke3 {[%clk 0:00:04]}  Bc2 {[%clk 0:00:03]} 42. Bxd5 {[%clk 0:00:03]}  cxd5 {[%clk 0:00:04]} 43. Bd8 {[%clk 0:00:04]}  Bxb3 {[%clk 0:00:04]} 44. Bxa5 {[%clk 0:00:05]}  Bxa4 {[%clk 0:00:05]} 45. Bxb4 {[%clk 0:00:06]}  Bc2 {[%clk 0:00:06]} 46. Bc3 {[%clk 0:00:06]}  Bg6 {[%clk 0:00:07]} 47. Bf6 {[%clk 0:00:06]}  Bf5 {[%clk 0:00:08]} 1/2-1/2

[Event "Grandmaster Triathlon (GM1)"]
[Site "Biel, CH"]
[Date "2025.07.20"]
[Round "13"]
[White "Salem, A.R. Saleh"]
[Black "Svane, Frederik"]
[Result "0-1"]
[Board "2"]
[TimeControl "180+2"]
[WhiteFideId "9301348"]
[BlackFideId "12923044"]
[WhiteTitle "GM"]
[BlackTitle "GM"]
[WhiteElo "2644"]
[BlackElo "2553"]
[WhiteTeam "UAE"]
[BlackTeam "GER"]
[WhiteClock "0:00:01"]
[BlackClock "0:00:11"]
[Variant "Standard"]

1. d4 {[%clk 0:03:04]}  Nf6 {[%clk 0:03:03]} 2. c4 {[%clk 0:03:03]}  e6 {[%clk 0:03:04]} 3. Nc3 {[%clk 0:03:05]}  Bb4 {[%clk 0:03:05]} 4. a3 {[%clk 0:03:06]}  Bxc3+ {[%clk 0:03:05]} 5. bxc3 {[%clk 0:03:07]}  O-O {[%clk 0:02:43]} 6. f3 {[%clk 0:03:09]}  d5 {[%clk 0:02:44]} 7. cxd5 {[%clk 0:03:10]}  exd5 {[%clk 0:02:45]} 8. e3 {[%clk 0:03:11]}  c5 {[%clk 0:02:47]} 9. Ne2 {[%clk 0:03:06]}  Re8 {[%clk 0:02:45]} 10. Ng3 {[%clk 0:03:06]}  Qa5 {[%clk 0:02:42]} 11. Bd2 {[%clk 0:03:06]}  Qc7 {[%clk 0:02:17]} 12. Bd3 {[%clk 0:03:06]}  b6 {[%clk 0:02:18]} 13. O-O {[%clk 0:03:04]}  Ba6 {[%clk 0:02:14]} 14. Bxa6 {[%clk 0:03:04]}  Nxa6 {[%clk 0:02:15]} 15. Ra2 {[%clk 0:02:28]}  Qc6 {[%clk 0:02:12]} 16. Bc1 {[%clk 0:02:06]}  Nc7 {[%clk 0:02:14]} 17. a4 {[%clk 0:02:00]}  Re6 {[%clk 0:02:03]} 18. Raf2 {[%clk 0:01:58]}  Rf8 {[%clk 0:01:55]} 19. Nf5 {[%clk 0:01:55]}  Nce8 {[%clk 0:01:51]} 20. c4 {[%clk 0:01:51]}  Nd6 {[%clk 0:01:36]} 21. cxd5 {[%clk 0:01:40]}  Nxd5 {[%clk 0:01:37]} 22. Nxd6 {[%clk 0:01:28]}  Qxd6 {[%clk 0:01:25]} 23. dxc5 {[%clk 0:01:17]}  Qxc5 {[%clk 0:01:25]} 24. Rc2 {[%clk 0:01:09]}  Nc3 {[%clk 0:00:54]} 25. Qd3 {[%clk 0:00:46]}  Rc8 {[%clk 0:00:56]} 26. Bd2 {[%clk 0:00:38]}  Ne2+ {[%clk 0:00:56]} 27. Qxe2 {[%clk 0:00:36]}  Qxc2 {[%clk 0:00:56]} 28. Rc1 {[%clk 0:00:37]}  Qxc1+ {[%clk 0:00:43]} 29. Bxc1 {[%clk 0:00:38]}  Rxc1+ {[%clk 0:00:44]} 30. Kf2 {[%clk 0:00:40]}  Rd6 {[%clk 0:00:45]} 31. h4 {[%clk 0:00:38]}  g6 {[%clk 0:00:31]} 32. Qb5 {[%clk 0:00:30]}  Rc2+ {[%clk 0:00:19]} 33. Kg3 {[%clk 0:00:31]}  Rc5 {[%clk 0:00:21]} 34. Qe8+ {[%clk 0:00:30]}  Kg7 {[%clk 0:00:21]} 35. Qe7 {[%clk 0:00:30]}  Rd2 {[%clk 0:00:19]} 36. Qxa7 {[%clk 0:00:26]}  Rcc2 {[%clk 0:00:17]} 37. e4 {[%clk 0:00:18]}  Rxg2+ {[%clk 0:00:16]} 38. Kf4 {[%clk 0:00:20]}  Rc6 {[%clk 0:00:16]} 39. Qd7 {[%clk 0:00:19]}  Rf6+ {[%clk 0:00:17]} 40. Ke3 {[%clk 0:00:19]}  Rg3 {[%clk 0:00:18]} 41. h5 {[%clk 0:00:08]}  Rfxf3+ {[%clk 0:00:14]} 42. Ke2 {[%clk 0:00:09]}  gxh5 {[%clk 0:00:11]} 43. Qd4+ {[%clk 0:00:10]}  Rf6 {[%clk 0:00:07]} 44. Qe5 {[%clk 0:00:12]}  h4 {[%clk 0:00:04]} 45. Qh5 {[%clk 0:00:13]}  Rf4 {[%clk 0:00:04]} 46. Qe5+ {[%clk 0:00:14]}  Rf6 {[%clk 0:00:05]} 47. Qh5 {[%clk 0:00:16]}  Rgg6 {[%clk 0:00:04]} 48. Qxh4 {[%clk 0:00:17]}  Re6 {[%clk 0:00:05]} 49. Kd3 {[%clk 0:00:19]}  Re5 {[%clk 0:00:05]} 50. Kd4 {[%clk 0:00:18]}  Rge6 {[%clk 0:00:05]} 51. Qg3+ {[%clk 0:00:19]}  Kf8 {[%clk 0:00:05]} 52. Kd3 {[%clk 0:00:11]}  Rxe4 {[%clk 0:00:04]} 53. Qb8+ {[%clk 0:00:12]}  Kg7 {[%clk 0:00:05]} 54. Qg3+ {[%clk 0:00:14]}  Rg6 {[%clk 0:00:06]} 55. Qc7 {[%clk 0:00:13]}  Ree6 {[%clk 0:00:07]} 56. Qc3+ {[%clk 0:00:14]}  Ref6 {[%clk 0:00:08]} 57. Ke4 {[%clk 0:00:15]}  h5 {[%clk 0:00:09]} 58. Qb2 {[%clk 0:00:08]}  h4 {[%clk 0:00:08]} 59. Qc3 {[%clk 0:00:09]}  Rg4+ {[%clk 0:00:08]} 60. Ke5 {[%clk 0:00:10]}  Rg5+ {[%clk 0:00:08]} 61. Ke4 {[%clk 0:00:11]}  Kg6 {[%clk 0:00:08]} 62. Qc8 {[%clk 0:00:12]}  Kh7 {[%clk 0:00:04]} 63. Qd8 {[%clk 0:00:08]}  Rgg6 {[%clk 0:00:04]} 64. Qd3 {[%clk 0:00:08]}  Kg7 {[%clk 0:00:04]} 65. Qc3 {[%clk 0:00:09]}  Rh6 {[%clk 0:00:05]} 66. Qh3 {[%clk 0:00:10]}  Rfg6 {[%clk 0:00:06]} 67. Qc3+ {[%clk 0:00:09]}  Kh7 {[%clk 0:00:07]} 68. Qf3 {[%clk 0:00:06]}  Re6+ {[%clk 0:00:07]} 69. Kd5 {[%clk 0:00:11]}  Ref6 {[%clk 0:00:07]} 70. Qd3+ {[%clk 0:00:12]}  Kh8 {[%clk 0:00:07]} 71. Qh3 {[%clk 0:00:13]}  Rfg6 {[%clk 0:00:07]} 72. Qc3+ {[%clk 0:00:14]}  Kh7 {[%clk 0:00:08]} 73. Qf3 {[%clk 0:00:15]}  Kg8 {[%clk 0:00:07]} 74. Qh3 {[%clk 0:00:16]}  Rg3 {[%clk 0:00:07]} 75. Qc8+ {[%clk 0:00:13]}  Kg7 {[%clk 0:00:09]} 76. Qe8 {[%clk 0:00:14]}  Rg5+ {[%clk 0:00:09]} 77. Kd4 {[%clk 0:00:11]}  h3 {[%clk 0:00:11]} 78. Qe3 {[%clk 0:00:12]}  Rg4+ {[%clk 0:00:11]} 79. Kd3 {[%clk 0:00:09]}  Rgg6 {[%clk 0:00:05]} 80. Qe5+ {[%clk 0:00:10]}  Kh7 {[%clk 0:00:05]} 81. Qf5 {[%clk 0:00:09]}  Kg8 {[%clk 0:00:06]} 82. Qc8+ {[%clk 0:00:10]}  Kg7 {[%clk 0:00:08]} 83. Qc3+ {[%clk 0:00:10]}  Rf6 {[%clk 0:00:09]} 84. Qe5 {[%clk 0:00:07]}  h2 {[%clk 0:00:10]} 85. Qg3+ {[%clk 0:00:05]}  Kh7 {[%clk 0:00:11]} 86. Kd4 {[%clk 0:00:01]} 0-1

[Event "Grandmaster Triathlon (GM1)"]
[Site "Biel, CH"]
[Date "2025.07.20"]
[Round "13"]
[White "Fedoseev, Vladimir"]
[Black "Wojtaszek, Radoslaw"]
[Result "1/2-1/2"]
[Board "3"]
[TimeControl "180+2"]
[WhiteFideId "24130737"]
[BlackFideId "1118358"]
[WhiteTitle "GM"]
[BlackTitle "GM"]
[WhiteElo "2746"]
[BlackElo "2610"]
[WhiteTeam "SLO"]
[BlackTeam "POL"]
[WhiteClock "0:00:10"]
[BlackClock "0:00:18"]
[Variant "Standard"]

1. d4 {[%clk 0:03:03]}  Nf6 {[%clk 0:03:03]} 2. Nf3 {[%clk 0:03:04]}  d5 {[%clk 0:03:04]} 3. c3 {[%clk 0:03:05]}  c6 {[%clk 0:03:03]} 4. Qc2 {[%clk 0:02:59]}  g6 {[%clk 0:03:00]} 5. Bf4 {[%clk 0:02:57]}  Bf5 {[%clk 0:03:01]} 6. Qb3 {[%clk 0:02:59]}  Qb6 {[%clk 0:03:01]} 7. Nbd2 {[%clk 0:02:59]}  Nbd7 {[%clk 0:02:59]} 8. h3 {[%clk 0:02:59]}  h5 {[%clk 0:02:54]} 9. e3 {[%clk 0:02:54]}  a5 {[%clk 0:02:48]} 10. Nh4 {[%clk 0:02:41]}  a4 {[%clk 0:02:20]} 11. Qxb6 {[%clk 0:02:41]}  Nxb6 {[%clk 0:02:07]} 12. Nxf5 {[%clk 0:02:20]}  gxf5 {[%clk 0:02:21]} 13. Rb1 {[%clk 0:02:10]}  e6 {[%clk 0:02:03]} 14. b4 {[%clk 0:02:11]}  Ne4 {[%clk 0:01:52]} 15. Nxe4 {[%clk 0:02:04]}  fxe4 {[%clk 0:01:53]} 16. Bc7 {[%clk 0:01:42]}  Nc8 {[%clk 0:01:42]} 17. c4 {[%clk 0:01:34]}  dxc4 {[%clk 0:01:37]} 18. Be5 {[%clk 0:01:15]}  Rg8 {[%clk 0:01:38]} 19. b5 {[%clk 0:01:10]}  Bd6 {[%clk 0:01:26]} 20. bxc6 {[%clk 0:01:10]}  bxc6 {[%clk 0:01:27]} 21. Rb7 {[%clk 0:00:52]}  Bxe5 {[%clk 0:01:20]} 22. dxe5 {[%clk 0:00:53]}  c3 {[%clk 0:01:20]} 23. Rb4 {[%clk 0:00:42]}  Ne7 {[%clk 0:01:18]} 24. Rxe4 {[%clk 0:00:35]}  Rb8 {[%clk 0:01:11]} 25. Bd3 {[%clk 0:00:36]}  Rxg2 {[%clk 0:01:09]} 26. Kf1 {[%clk 0:00:38]}  Rg8 {[%clk 0:00:55]} 27. Rxa4 {[%clk 0:00:37]}  Nd5 {[%clk 0:00:52]} 28. Ke2 {[%clk 0:00:28]}  Rg5 {[%clk 0:00:28]} 29. Rc1 {[%clk 0:00:24]}  Rxe5 {[%clk 0:00:29]} 30. Kf3 {[%clk 0:00:22]}  Ke7 {[%clk 0:00:25]} 31. e4 {[%clk 0:00:17]}  Nb4 {[%clk 0:00:16]} 32. Rxc3 {[%clk 0:00:09]}  Nxd3 {[%clk 0:00:13]} 33. Rxd3 {[%clk 0:00:09]}  f5 {[%clk 0:00:14]} 34. Rc3 {[%clk 0:00:07]}  fxe4+ {[%clk 0:00:13]} 35. Ke3 {[%clk 0:00:08]}  Rf8 {[%clk 0:00:12]} 36. Rxc6 {[%clk 0:00:08]}  Rf3+ {[%clk 0:00:13]} 37. Kd4 {[%clk 0:00:07]}  Rd5+ {[%clk 0:00:08]} 38. Kxe4 {[%clk 0:00:08]}  Rxf2 {[%clk 0:00:09]} 39. Raa6 {[%clk 0:00:09]}  Re2+ {[%clk 0:00:09]} 40. Kf3 {[%clk 0:00:11]}  Rde5 {[%clk 0:00:11]} 41. Rc3 {[%clk 0:00:11]}  Kf6 {[%clk 0:00:08]} 42. Ra4 {[%clk 0:00:09]}  Rb2 {[%clk 0:00:08]} 43. Kg3 {[%clk 0:00:09]}  Rf5 {[%clk 0:00:08]} 44. Kh4 {[%clk 0:00:09]}  Rbf2 {[%clk 0:00:07]} 45. a3 {[%clk 0:00:08]}  Rd2 {[%clk 0:00:05]} 46. Re4 {[%clk 0:00:08]}  Ra2 {[%clk 0:00:06]} 47. Rc6 {[%clk 0:00:05]}  Rxa3 {[%clk 0:00:05]} 48. Rcxe6+ {[%clk 0:00:05]}  Kf7 {[%clk 0:00:06]} 49. Re7+ {[%clk 0:00:07]}  Kf8 {[%clk 0:00:07]} 50. Rb7 {[%clk 0:00:07]}  Raa5 {[%clk 0:00:03]} 51. Reb4 {[%clk 0:00:07]}  Rae5 {[%clk 0:00:03]} 52. Ra7 {[%clk 0:00:05]}  Rf6 {[%clk 0:00:03]} 53. Rb8+ {[%clk 0:00:06]}  Re8 {[%clk 0:00:04]} 54. Rbb7 {[%clk 0:00:07]}  Rf5 {[%clk 0:00:05]} 55. Rb4 {[%clk 0:00:07]}  Rd8 {[%clk 0:00:06]} 56. Rh7 {[%clk 0:00:05]}  Kg8 {[%clk 0:00:08]} 57. Rc7 {[%clk 0:00:06]}  Re8 {[%clk 0:00:09]} 58. Kg3 {[%clk 0:00:05]}  Ref8 {[%clk 0:00:10]} 59. Rb3 {[%clk 0:00:06]}  R8f7 {[%clk 0:00:11]} 60. Rc4 {[%clk 0:00:07]}  Rg7+ {[%clk 0:00:12]} 61. Kh4 {[%clk 0:00:08]}  Rgf7 {[%clk 0:00:14]} 62. Rbb4 {[%clk 0:00:08]}  Kh7 {[%clk 0:00:15]} 63. Rd4 {[%clk 0:00:09]}  R7f6 {[%clk 0:00:16]} 64. Rd7+ {[%clk 0:00:09]}  Rf7 {[%clk 0:00:17]} 65. Rxf7+ {[%clk 0:00:10]}  Rxf7 {[%clk 0:00:18]} 66. Kxh5 {[%clk 0:00:10]} 1/2-1/2

[Event "Grandmaster Triathlon (GM1)"]
[Site "Biel, CH"]
[Date "2025.07.20"]
[Round "14"]
[White "Wojtaszek, Radoslaw"]
[Black "Aravindh, Chithambaram VR."]
[Result "0-1"]
[Board "1"]
[TimeControl "180+2"]
[WhiteFideId "1118358"]
[BlackFideId "5072786"]
[WhiteTitle "GM"]
[BlackTitle "GM"]
[WhiteElo "2610"]
[BlackElo "2611"]
[WhiteTeam "POL"]
[BlackTeam "IND"]
[WhiteClock "0:00:17"]
[BlackClock "0:00:22"]
[Variant "Standard"]

1. Nf3 {[%clk 0:03:03]}  d5 {[%clk 0:03:03]} 2. g3 {[%clk 0:03:04]}  g6 {[%clk 0:03:03]} 3. Bg2 {[%clk 0:03:03]}  Bg7 {[%clk 0:03:04]} 4. d4 {[%clk 0:03:04]}  Nf6 {[%clk 0:03:05]} 5. O-O {[%clk 0:03:04]}  O-O {[%clk 0:03:05]} 6. c3 {[%clk 0:03:04]}  a5 {[%clk 0:03:02]} 7. a4 {[%clk 0:03:02]}  c6 {[%clk 0:03:00]} 8. Bf4 {[%clk 0:03:01]}  Bf5 {[%clk 0:02:58]} 9. Qc1 {[%clk 0:02:58]}  Nbd7 {[%clk 0:02:52]} 10. Bh6 {[%clk 0:02:57]}  Re8 {[%clk 0:02:48]} 11. Bxg7 {[%clk 0:02:51]}  Kxg7 {[%clk 0:02:48]} 12. Nbd2 {[%clk 0:02:34]}  e5 {[%clk 0:02:45]} 13. dxe5 {[%clk 0:02:35]}  Nxe5 {[%clk 0:02:45]} 14. Nd4 {[%clk 0:02:27]}  Bd7 {[%clk 0:02:42]} 15. c4 {[%clk 0:02:26]}  c5 {[%clk 0:02:22]} 16. Nb5 {[%clk 0:02:10]}  d4 {[%clk 0:02:07]} 17. Bxb7 {[%clk 0:02:07]}  Rb8 {[%clk 0:02:07]} 18. Bg2 {[%clk 0:02:07]}  Bf5 {[%clk 0:01:55]} 19. Ra3 {[%clk 0:02:05]}  Qd7 {[%clk 0:01:52]} 20. Nf3 {[%clk 0:02:01]}  Be4 {[%clk 0:01:26]} 21. Rd1 {[%clk 0:01:36]}  Nxf3+ {[%clk 0:01:22]} 22. Bxf3 {[%clk 0:01:22]}  Bxf3 {[%clk 0:01:22]} 23. Rxf3 {[%clk 0:01:14]}  Rxe2 {[%clk 0:01:22]} 24. Qg5 {[%clk 0:01:06]}  Qe7 {[%clk 0:01:15]} 25. Kg2 {[%clk 0:00:58]}  Rb6 {[%clk 0:00:42]} 26. Qf4 {[%clk 0:00:59]}  Re4 {[%clk 0:00:40]} 27. Qd2 {[%clk 0:00:59]}  Rbe6 {[%clk 0:00:39]} 28. Qxa5 {[%clk 0:00:57]}  Re2 {[%clk 0:00:37]} 29. Nc7 {[%clk 0:00:53]}  R6e5 {[%clk 0:00:34]} 30. Qb6 {[%clk 0:00:52]}  Ng4 {[%clk 0:00:31]} 31. Nd5 {[%clk 0:00:40]}  Rxd5 {[%clk 0:00:31]} 32. cxd5 {[%clk 0:00:42]}  Qe4 {[%clk 0:00:25]} 33. Rdd3 {[%clk 0:00:17]}  Rxf2+ {[%clk 0:00:22]} 0-1

[Event "Grandmaster Triathlon (GM1)"]
[Site "Biel, CH"]
[Date "2025.07.20"]
[Round "14"]
[White "Svane, Frederik"]
[Black "Murzin, Volodar"]
[Result "0-1"]
[Board "2"]
[TimeControl "180+2"]
[WhiteFideId "12923044"]
[BlackFideId "44155573"]
[WhiteTitle "GM"]
[BlackTitle "GM"]
[WhiteElo "2553"]
[BlackElo "2669"]
[WhiteTeam "GER"]
[BlackTeam "FID"]
[WhiteClock "0:00:03"]
[BlackClock "0:00:14"]
[Variant "Standard"]

1. e4 {[%clk 0:03:03]}  c6 {[%clk 0:03:04]} 2. d4 {[%clk 0:03:04]}  d5 {[%clk 0:03:05]} 3. exd5 {[%clk 0:03:05]}  cxd5 {[%clk 0:03:06]} 4. Nf3 {[%clk 0:03:07]}  Nc6 {[%clk 0:03:07]} 5. Be3 {[%clk 0:03:08]}  Bf5 {[%clk 0:03:08]} 6. Nbd2 {[%clk 0:03:08]}  e6 {[%clk 0:03:08]} 7. Bb5 {[%clk 0:02:58]}  Bd6 {[%clk 0:03:06]} 8. O-O {[%clk 0:02:54]}  Nge7 {[%clk 0:03:06]} 9. c4 {[%clk 0:02:54]}  a6 {[%clk 0:03:01]} 10. Ba4 {[%clk 0:02:49]}  O-O {[%clk 0:02:57]} 11. c5 {[%clk 0:02:49]}  Bc7 {[%clk 0:02:56]} 12. Re1 {[%clk 0:02:43]}  h6 {[%clk 0:02:48]} 13. Nh4 {[%clk 0:01:54]}  Be4 {[%clk 0:02:40]} 14. g3 {[%clk 0:01:23]}  Bh7 {[%clk 0:02:28]} 15. Bc2 {[%clk 0:01:23]}  Bxc2 {[%clk 0:02:20]} 16. Qxc2 {[%clk 0:01:24]}  g5 {[%clk 0:02:16]} 17. Ng2 {[%clk 0:00:51]}  Nf5 {[%clk 0:02:15]} 18. Qd3 {[%clk 0:00:52]}  Qf6 {[%clk 0:02:15]} 19. Nb3 {[%clk 0:00:53]}  Qg6 {[%clk 0:02:10]} 20. Rad1 {[%clk 0:00:39]}  Nfe7 {[%clk 0:01:50]} 21. Bc1 {[%clk 0:00:24]}  Qxd3 {[%clk 0:01:48]} 22. Rxd3 {[%clk 0:00:25]}  a5 {[%clk 0:01:43]} 23. h4 {[%clk 0:00:14]}  a4 {[%clk 0:01:40]} 24. Na1 {[%clk 0:00:16]}  Nf5 {[%clk 0:01:25]} 25. Nc2 {[%clk 0:00:10]}  g4 {[%clk 0:01:13]} 26. Nge3 {[%clk 0:00:10]}  Nxe3 {[%clk 0:01:13]} 27. Bxe3 {[%clk 0:00:10]}  h5 {[%clk 0:01:13]} 28. Bh6 {[%clk 0:00:04]}  Rfe8 {[%clk 0:01:13]} 29. Bg5 {[%clk 0:00:03]}  Kg7 {[%clk 0:01:14]} 30. Kg2 {[%clk 0:00:04]}  f6 {[%clk 0:01:13]} 31. Bd2 {[%clk 0:00:04]}  Rad8 {[%clk 0:01:09]} 32. Ne3 {[%clk 0:00:04]}  Kg6 {[%clk 0:01:05]} 33. b4 {[%clk 0:00:05]}  axb3 {[%clk 0:01:03]} 34. axb3 {[%clk 0:00:07]}  Na7 {[%clk 0:01:05]} 35. Nd1 {[%clk 0:00:06]}  Nc6 {[%clk 0:00:53]} 36. Ne3 {[%clk 0:00:05]}  Ra8 {[%clk 0:00:54]} 37. b4 {[%clk 0:00:06]}  b5 {[%clk 0:00:46]} 38. Nd1 {[%clk 0:00:04]}  Kf7 {[%clk 0:00:43]} 39. Be3 {[%clk 0:00:04]}  Ra4 {[%clk 0:00:40]} 40. Rb3 {[%clk 0:00:04]}  Rxb4 {[%clk 0:00:37]} 41. Rxb4 {[%clk 0:00:05]}  Nxb4 {[%clk 0:00:38]} 42. Nc3 {[%clk 0:00:06]}  Rb8 {[%clk 0:00:35]} 43. Rb1 {[%clk 0:00:07]}  Ba5 {[%clk 0:00:33]} 44. Bf4 {[%clk 0:00:04]}  Rb7 {[%clk 0:00:33]} 45. Kf1 {[%clk 0:00:03]}  Kg6 {[%clk 0:00:31]} 46. Ke2 {[%clk 0:00:04]}  Nc6 {[%clk 0:00:32]} 47. Kd3 {[%clk 0:00:03]}  Bxc3 {[%clk 0:00:33]} 48. Kxc3 {[%clk 0:00:04]}  b4+ {[%clk 0:00:34]} 49. Kd3 {[%clk 0:00:05]}  Ra7 {[%clk 0:00:34]} 50. Rb3 {[%clk 0:00:04]}  Ra3 {[%clk 0:00:35]} 51. Rxa3 {[%clk 0:00:05]}  bxa3 {[%clk 0:00:36]} 52. Bd2 {[%clk 0:00:06]}  a2 {[%clk 0:00:33]} 53. Bc3 {[%clk 0:00:08]}  Kf5 {[%clk 0:00:34]} 54. Kc2 {[%clk 0:00:03]}  e5 {[%clk 0:00:31]} 55. dxe5 {[%clk 0:00:03]}  fxe5 {[%clk 0:00:28]} 56. Kb2 {[%clk 0:00:04]}  d4 {[%clk 0:00:28]} 57. Bd2 {[%clk 0:00:03]}  Ke4 {[%clk 0:00:27]} 58. Kxa2 {[%clk 0:00:04]}  Kd3 {[%clk 0:00:22]} 59. Bg5 {[%clk 0:00:03]}  Kc2 {[%clk 0:00:15]} 60. Ka3 {[%clk 0:00:04]}  d3 {[%clk 0:00:16]} 61. Ka4 {[%clk 0:00:05]}  d2 {[%clk 0:00:15]} 62. Bxd2 {[%clk 0:00:07]}  Kxd2 {[%clk 0:00:16]} 63. Kb5 {[%clk 0:00:08]}  Nb8 {[%clk 0:00:12]} 64. Kc4 {[%clk 0:00:04]}  Ke2 {[%clk 0:00:13]} 65. Kd5 {[%clk 0:00:05]}  Kxf2 {[%clk 0:00:14]} 66. Kxe5 {[%clk 0:00:03]}  Kxg3 {[%clk 0:00:14]} 0-1